bitfinex-derivatives/quotes_ETHF0:USTF0_20241023
["timestamp","ask_amount","ask_price","bid_price","bid_amount"]
[1729702934826,3.85,2492.3,2491.9,40.8]
[1729702935123,4.19493471,2492.1,2492.0,0.40158]
[1729702935316,4.19493471,2492.2,2492.1,0.40156]
[1729702935522,4.19493471,2492.3,2492.2,0.40155]
[1729702935729,0.40153,2492.3,2492.0,0.40157]
[1729702935929,2.4795,2492.4,2492.1,0.40155]
[1729702936135,5.05559957,2492.3,2492.1,0.40155]
[1729702936426,5.05559957,2492.3,2491.9,40.8]
[1729702936427,3.85,2492.2,2491.9,40.8]
[1729702936627,3.85,2492.2,2492.0,0.40157]
[1729702936827,4.46482959,2492.1,2491.9,41.20158]
[1729702937022,3.05813576,2492.1,2492.0,0.40158]
[1729702937328,1.00371,2492.7,2492.0,0.40158]
[1729702937329,3.2078,2492.9,2492.0,4.0128]
[1729702937627,4.31139079,2492.6,2492.3,0.40152]
[1729702937821,0.4015,2492.5,2492.3,0.40152]
[1729702938018,3.85,2492.7,2491.9,44.0078]
[1729702938223,4.4210313,2492.4,2491.9,44.0078]
[1729702938527,5.6631,2492.9,2492.5,0.4015]
[1729702938528,4.4210313,2492.6,2492.5,0.4015]
[1729702938719,4.49704828,2492.7,2492.6,0.40148]
[1729702939028,0.40146,2492.8,2492.2,3.2078]
[1729702939224,5.6631,2492.9,2492.6,0.40148]
[1729702939225,4.49704828,2492.7,2492.6,0.40148]
[1729702939429,4.89852828,2492.7,2492.4,0.40151]
[1729702939627,4.75159018,2492.8,2492.5,0.40149]
[1729702940129,4.35013018,2492.6,2492.5,0.40149]
[1729702940327,5.6631,2492.9,2492.2,3.2078]
[1729702940328,4.35013018,2492.7,2492.2,3.2078]
[1729702940525,5.6631,2492.9,2492.6,0.40148]
[1729702940824,8.51989042,2492.8,2492.2,3.2078]
[1729702941027,0.40149,2492.6,2492.4,0.40151]
[1729702941223,3.85,2492.7,2492.2,3.2078]
[1729702941427,8.35789042,2492.5,2491.9,40.8]
[1729702941634,0.40158,2492.0,2491.9,40.8]
[1729702941828,3.85,2492.2,2491.9,40.8]
[1729702942025,4.74779437,2492.0,2491.9,40.8]
[1729702942326,4.34621437,2492.1,2491.9,40.8]
[1729702942523,0.40158,2492.0,2491.9,40.8]
[1729702942726,4.93766341,2492.0,2491.9,40.8]
[1729702942924,4.53608341,2492.1,2491.9,44.8128]
[1729702943126,3.2078,2492.3,2491.9,44.8128]
[1729702943127,3.2078,2492.3,2492.2,0.40155]
[1729702943327,3.2078,2492.8,2492.2,3.2078]
[1729702943529,3.2078,2492.8,2492.2,0.40155]
[1729702943530,4.53608341,2492.3,2492.2,0.40155]
[1729702943733,4.0128,2492.3,2492.0,0.40157]
[1729702943925,3.85,2492.1,2491.9,3.2078]
[1729702944130,0.40158,2492.0,2491.9,3.2078]
[1729702944334,8.625338,2492.0,2491.9,3.2078]
[1729702944832,8.223758,2492.0,2491.9,3.6094]
[1729702945037,8.223758,2492.0,2491.9,3.2078]
[1729702945038,8.625338,2492.0,2491.9,3.2078]
[1729702946523,4.210958,2492.0,2491.9,3.6094]
[1729702946725,4.612538,2492.0,2491.9,3.6094]
[1729702947029,4.210958,2492.0,2491.9,3.6094]
[1729702947630,4.210958,2492.0,2491.7,0.40162]
[1729702947631,8.223758,2492.0,2491.7,0.40162]
[1729702947830,0.40163,2491.7,2491.6,0.40164]
[1729702948030,0.40161,2491.8,2491.7,0.40162]
[1729702948332,0.40161,2491.8,2490.7,8.7472]
[1729702948333,4.52128447,2491.7,2490.9,3.2078]
[1729702948528,3.85,2491.1,2490.9,3.2078]
[1729702948725,0.40176,2490.9,2490.8,0.40177]
[1729702948928,4.31013406,2491.0,2490.5,1.00454]
[1729702949132,0.40178,2490.8,2490.7,0.40178]
[1729702949324,8.16013406,2491.1,2490.3,41.8046]
[1729702949636,4.31013406,2490.8,2490.7,0.40179]
[1729702949836,4.55034882,2491.0,2490.5,4.21236]
[1729702950042,4.95209882,2491.0,2490.9,0.40176]
[1729702950328,4.95209882,2491.0,2490.5,4.21236]
[1729702950329,4.55034882,2491.0,2490.5,4.21236]
[1729702950538,3.68068882,2491.0,2490.9,0.40176]
[1729702950729,6.1789,2492.2,2491.0,1.00436]
[1729702950925,2.3289,2492.2,2492.1,0.40156]
[1729702951128,3.2078,2492.3,2491.7,1.00407]
[1729702951129,4.35638685,2492.1,2492.0,0.40158]
[1729702951427,4.35638685,2492.2,2491.9,3.2078]
[1729702951629,4.35638685,2492.2,2492.1,0.40156]
[1729702951833,8.47773149,2492.6,2492.1,40.8]
[1729702952031,0.40153,2492.4,2492.2,0.40154]
[1729702952234,0.40153,2492.4,2492.1,40.8]
[1729702952235,7.5478,2492.5,2492.1,40.8]
[1729702952531,0.4016,2491.9,2491.5,0.40166]
[1729702952734,0.40159,2492.0,2491.8,0.4016]
[1729702953036,4.93247298,2492.2,2491.8,40.8]
[1729702953236,4.53091298,2491.9,2491.7,3.2078]
[1729702953431,4.53091298,2491.9,2491.8,0.40161]
[1729702953629,4.40632279,2492.1,2492.0,0.40157]
[1729702953831,7.5478,2492.8,2492.0,41.20157]
[1729702954130,0.40149,2492.6,2492.4,0.40151]
[1729702954328,0.40148,2492.6,2492.4,0.40151]
[1729702954528,0.40148,2492.6,2492.0,41.20157]
[1729702954529,0.40153,2492.4,2492.2,0.40154]
[1729702954724,0.40153,2492.4,2491.4,4.21197]
[1729702954725,1.0038,2492.4,2491.4,4.21197]
[1729702954927,1.0038,2492.4,2491.8,0.40161]
[1729702954928,0.4016,2491.9,2491.8,0.40161]
[1729702955127,7.5478,2491.9,2491.4,3.2078]
[1729702955330,0.40171,2491.2,2491.1,0.40172]
[1729702955525,4.21193,2491.6,2490.9,3.2078]
[1729702955838,4.55764737,2491.2,2491.1,0.40171]
[1729702956040,4.55764737,2491.5,2490.9,3.2078]
[1729702956339,4.55764737,2491.5,2490.7,40.8]
[1729702956340,4.55764737,2491.2,2490.7,40.8]
[1729702956529,4.55764737,2491.2,2490.2,3.2078]
[1729702956530,3.2078,2491.0,2490.2,3.2078]
[1729702956731,0.40177,2490.8,2490.6,0.40179]
[1729702957035,4.60278264,2490.7,2490.3,1.00464]
[1729702957239,4.60278264,2490.7,2490.6,0.40179]
[1729702957439,4.60278264,2490.7,2490.2,3.2078]
[1729702957628,4.60278264,2490.7,2490.6,0.40181]
[1729702957835,4.58614694,2490.9,2490.2,3.2078]
[1729702958033,2.5625,2491.4,2490.3,4.34]
[1729702958034,4.58614694,2490.7,2490.3,4.34]
[1729702958235,48.02269,2492.5,2490.6,3.2078]
[1729702958236,7.5478,2491.9,2490.6,3.2078]
[1729702958539,4.58614694,2491.3,2490.9,3.2078]
[1729702958734,6.42769058,2491.7,2490.9,3.2078]
[1729702958932,1.00416,2491.5,2490.9,3.2078]
[1729702959136,0.40172,2491.2,2490.7,0.40179]
[1729702959339,0.40172,2491.2,2490.6,3.2078]
[1729702959340,0.40174,2491.1,2490.8,0.40176]
[1729702959538,4.84052804,2491.1,2490.9,0.40176]
[1729702959842,1.0042,2491.4,2490.9,0.40176]
[1729702960140,4.2887767,2491.0,2490.9,0.40176]
[1729702960340,8.3031767,2491.4,2490.6,3.2078]
[1729702960542,4.44550497,2491.0,2490.6,3.2078]
[1729702960740,0.40182,2490.5,2490.4,41.20183]
[1729702960932,16.0188,2490.9,2490.3,3.2078]
[1729702960933,0.40184,2490.4,2490.3,3.2078]
[1729702961136,0.40184,2490.4,2490.0,5.0]
[1729702961137,0.40189,2490.1,2490.0,5.0]
[1729702961639,0.40189,2490.1,2490.0,5.4019]
[1729702961640,4.49370366,2490.1,2490.0,5.4019]
[1729702962349,0.47770366,2490.1,2490.0,5.4019]
[1729702962534,0.07581366,2490.1,2490.0,5.4019]
[1729702962849,4.60711159,2490.2,2490.0,5.0]
[1729702963039,4.60711159,2490.2,2490.1,0.40189]
[1729702963242,4.60711159,2490.5,2490.0,5.0]
[1729702963446,4.03285445,2490.4,2490.3,0.40185]
[1729702963648,10.6744,2490.9,2490.1,4.21252]
[1729702963845,0.4018,2490.7,2490.6,0.4018]
[1729702964041,4.69341462,2490.7,2490.6,0.4018]
[1729702964239,4.69341462,2490.7,2490.1,4.21252]
[1729702964240,0.4018,2490.7,2490.1,4.21252]
[1729702964544,0.4018,2490.7,2490.4,4.21238]
[1729702964545,4.29161462,2490.7,2490.4,4.21238]
[1729702964750,4.29161462,2490.7,2490.6,0.40181]
[1729702964937,4.29161462,2490.7,2490.4,3.2078]
[1729702964938,4.2321526,2490.8,2490.4,3.2078]
[1729702965144,0.40177,2490.9,2490.7,0.40179]
[1729702965343,4.2321526,2491.0,2490.3,3.2078]
[1729702965552,7.5478,2491.2,2490.7,0.40179]
[1729702965553,4.2321526,2490.8,2490.7,0.40179]
[1729702965746,3.2078,2491.2,2490.6,3.2078]
[1729702965946,3.2078,2491.2,2491.1,0.40173]
[1729702966245,8.19655879,2491.2,2491.1,0.40173]
[1729702966448,7.79484879,2491.2,2490.6,3.2078]
[1729702966840,7.79484879,2491.2,2490.9,0.40174]
[1729702966841,0.40174,2491.1,2490.9,0.40174]
[1729702967151,4.48920497,2491.0,2490.9,0.40174]
[1729702967345,4.48920497,2491.0,2490.8,0.40177]
[1729702967548,4.48920497,2491.0,2490.9,0.40176]
[1729702967755,9.2341,2491.5,2491.3,0.40169]
[1729702967756,4.25408725,2491.4,2491.3,0.40169]
[1729702967954,0.40162,2491.8,2491.3,0.40169]
[1729702968251,4.25408725,2491.4,2491.3,3.2078]
[1729702968444,4.25408725,2491.4,2491.3,0.40169]
[1729702968642,5.6918,2491.9,2490.9,1.00438]
[1729702968850,10.0318,2491.9,2491.0,40.8]
[1729702969048,0.40171,2491.3,2491.1,0.40172]
[1729702969246,3.2078,2491.6,2491.0,40.8]
[1729702969247,7.5478,2491.6,2491.0,40.8]
[1729702969549,4.62522084,2491.3,2491.0,40.8]
[1729702969750,4.62522084,2491.3,2491.2,0.40171]
[1729702970056,0.40173,2491.1,2491.0,41.20174]
[1729702970257,0.40173,2491.1,2491.0,0.40174]
[1729702970466,4.01468965,2491.1,2491.0,0.40174]
[1729702970763,4.34918363,2491.3,2491.0,0.40174]
[1729702970961,0.40173,2491.1,2491.0,0.40174]
[1729702971155,4.34918363,2491.1,2490.6,3.2078]
[1729702971456,0.40179,2490.7,2490.6,3.2078]
[1729702971856,8.94905192,2490.7,2490.6,3.2078]
[1729702972055,8.54726192,2490.7,2490.0,5.0]
[1729702972252,4.53206192,2490.7,2490.6,3.60961]
[1729702973265,2.5049,2491.4,2490.6,7.223]
[1729702973462,2.5049,2491.4,2491.2,0.40171]
[1729702973463,0.4017,2491.3,2491.2,0.40171]
[1729702973657,8.92450767,2491.3,2491.2,0.40171]
[1729702973852,1.00431,2491.2,2490.2,3.2078]
[1729702974053,16.07060767,2491.3,2490.6,1.0045]
[1729702974054,4.50840767,2491.3,2490.6,1.0045]
[1729702974256,0.40176,2490.9,2490.8,0.40176]
[1729702974464,3.50913,2491.4,2491.1,0.40173]
[1729702974465,0.40172,2491.2,2491.1,0.40173]
[1729702974762,0.40172,2491.2,2490.6,3.2078]
[1729702974763,0.40174,2491.0,2490.9,0.40174]
[1729702974957,4.41389008,2491.2,2490.6,3.2078]
[1729702975159,4.41389008,2491.0,2490.9,3.60956]
[1729702975362,4.41389008,2491.3,2490.9,3.2078]
[1729702975563,2.5049,2491.4,2490.7,3.45167]
[1729702975564,2.5049,2491.4,2491.0,0.40173]
[1729702975864,0.40171,2491.2,2491.0,0.40173]
[1729702976060,0.40173,2491.1,2491.0,0.40173]
[1729702976260,0.40173,2491.1,2490.7,2.4472]
[1729702976261,0.40174,2491.0,2490.9,0.40175]
[1729702976766,0.40174,2491.0,2490.7,2.4472]
[1729702976767,4.89378259,2491.0,2490.7,2.4472]
[1729702976965,4.49203259,2491.0,2490.9,0.40176]
[1729702977163,4.49203259,2491.0,2490.9,3.60956]
[1729702977357,4.23190195,2491.1,2490.9,0.40176]
[1729702977559,0.40174,2491.1,2490.9,0.40176]
[1729702977756,4.0144,2491.0,2490.6,3.2078]
[1729702977965,0.40179,2490.7,2490.6,0.4018]
[1729702978274,4.31745547,2490.7,2490.3,3.2078]
[1729702978465,0.40189,2490.2,2490.0,5.4019]
[1729702978766,0.40187,2490.3,2490.1,0.40188]
[1729702979067,4.60442,2490.2,2490.1,40.8]
[1729702979270,5.00629,2490.2,2490.1,41.20188]
[1729702979567,2.3584,2490.6,2490.1,40.8]
[1729702979764,0.40187,2490.2,2490.1,40.8]
[1729702979962,4.40090408,2490.4,2490.1,40.8]
[1729702980162,4.40090408,2490.5,2490.1,40.8]
[1729702980363,0.40185,2490.4,2490.2,0.40187]
[1729702980562,2.3584,2490.6,2490.1,41.20188]
[1729702980563,0.40186,2490.3,2490.1,41.20188]
[1729702980759,0.40187,2490.2,2490.1,40.8]
[1729702980963,2.3584,2490.6,2490.1,0.40189]
[1729702981261,0.40189,2490.1,2490.0,5.0]
[1729702981661,4.38623795,2490.1,2490.0,5.0]
[1729702981862,11.61003795,2490.1,2490.0,5.0]
[1729702982065,11.61003795,2490.1,2489.4,3.2078]
[1729702982066,11.20814795,2490.1,2489.4,3.2078]
[1729702982368,0.40198,2489.5,2489.4,3.2078]
[1729702982872,0.40198,2489.5,2489.2,40.8]
[1729702982873,8.41930942,2489.5,2489.2,40.8]
[1729702983063,0.40202,2489.3,2488.8,3.2078]
[1729702983265,0.40202,2489.3,2489.1,0.40203]
[1729702983465,4.40250942,2489.2,2489.1,0.40205]
[1729702983775,2.4485,2489.6,2488.8,3.2078]
[1729702983974,4.93142978,2489.2,2489.0,0.40206]
[1729702984176,3.2078,2489.5,2488.8,3.2078]
[1729702984177,7.73718978,2489.5,2488.8,3.2078]
[1729702984472,4.52938978,2489.1,2488.8,3.2078]
[1729702984673,4.52938978,2489.1,2488.5,3.2078]
[1729702984979,0.40209,2488.9,2488.7,0.40211]
[1729702985267,0.40211,2488.7,2488.5,0.40214]
[1729702985472,6.7287975,2488.8,2488.1,3.2078]
[1729702985670,2.4485,2488.8,2488.4,3.2078]
[1729702985869,2.4485,2488.8,2488.7,0.40211]
[1729702986171,6.72415418,2488.8,2488.6,0.40212]
[1729702986369,6.72415418,2488.8,2488.7,0.40211]
[1729702986760,10.74255418,2488.8,2488.4,3.2078]
[1729702986965,10.74255418,2488.8,2488.7,0.40211]
[1729702986966,6.72415418,2488.8,2488.7,0.40211]
[1729702987162,10.74255418,2488.8,2488.3,3.2078]
[1729702987466,0.40213,2488.6,2488.4,0.40215]
[1729702987768,6.72415418,2488.8,2488.1,3.2078]
[1729702987972,2.4485,2488.8,2488.7,0.40211]
[1729702988279,7.0509541,2488.8,2488.7,0.40211]
[1729702988664,4.6024541,2488.8,2488.7,0.40211]
[1729702989162,4.6024541,2488.8,2488.7,4.42051]
[1729702989368,8.54592,2489.3,2489.1,0.40205]
[1729702989676,4.45132505,2489.2,2488.7,3.2078]
[1729702989872,4.45132505,2489.2,2489.1,0.40205]
[1729702990073,4.45132505,2489.3,2488.9,3.2078]
[1729702990270,3.2078,2489.7,2489.6,0.40197]
[1729702990470,2.5254,2490.2,2490.1,0.40189]
[1729702990664,2.5254,2490.2,2489.7,1.00487]
[1729702990665,2.5254,2490.2,2489.9,3.2078]
[1729702990971,4.19425931,2490.1,2490.0,41.2019]
[1729702991170,4.19425931,2490.1,2490.0,40.8]
[1729702991171,0.40189,2490.1,2490.0,40.8]
[1729702991476,0.40192,2489.9,2489.4,2.3359]
[1729702991667,0.40192,2489.9,2489.7,0.40194]
[1729702991868,4.21701488,2490.3,2489.8,40.8]
[1729702992070,4.21701488,2490.3,2490.0,0.40189]
[1729702992071,0.40188,2490.2,2490.0,0.40189]
[1729702992269,4.52901178,2490.1,2490.0,0.40189]
[1729702992570,4.21701488,2490.6,2489.8,40.8]
[1729702992869,4.21701488,2490.6,2489.4,2.3359]
[1729702992870,3.2078,2490.0,2489.5,0.40197]
[1729702993078,0.40197,2489.6,2489.5,0.40198]
[1729702993278,2.3484,2489.9,2489.8,0.40193]
[1729702993575,4.55946331,2489.9,2489.8,0.40193]
[1729702993763,3.35761488,2490.6,2490.0,1.00475]
[1729702993966,3.35761488,2490.6,2489.8,4.016]
[1729702993967,1.00921488,2490.9,2490.8,0.40177]
[1729702994172,3.2078,2491.3,2491.1,0.40173]
[1729702994173,1.00921488,2491.3,2491.1,0.40173]
[1729702994374,4.36682977,2491.5,2490.6,3.2078]
[1729702994375,0.40174,2491.0,2490.6,3.2078]
[1729702994584,4.31512357,2490.9,2490.8,0.40177]
[1729702994778,0.40172,2491.2,2490.9,0.40176]
[1729702994983,0.40168,2491.4,2490.7,1.40627]
[1729702995279,4.3680988,2491.1,2491.0,0.40174]
[1729702995480,4.3680988,2491.3,2491.2,0.40171]
[1729702995669,0.40165,2491.6,2490.9,1.00438]
[1729702995872,0.40165,2491.6,2491.4,0.40167]
[1729702996074,0.40168,2491.4,2491.1,0.40171]
[1729702996269,4.51533689,2491.5,2490.8,5.7281]
[1729702996479,6.59451488,2491.8,2490.8,5.7281]
[1729702996480,2.3775,2491.8,2491.1,3.2078]
[1729702996682,4.51533689,2491.6,2491.4,0.40168]
[1729702996876,2.3775,2491.8,2491.1,3.2078]
[1729702997076,0.40171,2491.2,2491.1,3.2078]
[1729702997276,4.31956267,2491.5,2491.2,0.4017]
[1729702997476,5.32877755,2491.6,2491.1,3.2078]
[1729702997477,1.00921488,2491.6,2491.1,3.2078]
[1729702997778,1.00921488,2491.6,2491.3,0.40168]
[1729702997779,4.40138131,2491.4,2491.3,0.40168]
[1729702997979,4.40138131,2491.5,2491.1,3.2078]
[1729702998181,0.40167,2491.5,2491.3,0.40168]
[1729702998379,4.80305131,2491.5,2491.3,0.40168]
[1729702998582,4.40138131,2491.6,2491.1,3.2078]
[1729702998880,4.54492068,2491.4,2491.3,0.40168]
[1729702999385,1.00921488,2491.7,2491.2,40.8]
[1729702999584,1.00921488,2491.7,2491.5,0.40165]
[1729702999883,4.39923572,2491.5,2491.4,3.60948]
[1729703000182,1.41083488,2491.8,2491.2,40.8]
[1729703000183,5.8100806,2491.7,2491.5,0.40166]
[1729703000380,5.4084506,2491.7,2491.2,44.0078]
[1729703000582,1.01065788,2491.7,2491.6,0.40164]
[1729703000887,1.01065788,2491.9,2491.8,0.40161]
[1729703001078,0.40159,2492.0,2491.8,0.4016]
[1729703001275,1.01065788,2492.1,2491.5,3.2078]
[1729703001483,1.41222788,2492.1,2491.5,3.2078]
[1729703001685,4.20016934,2492.0,2491.9,0.40158]
[1729703001980,6.84222361,2492.0,2491.9,0.4016]
[1729703002181,9.87414831,2492.0,2491.5,0.45346474]
[1729703002489,3.0319247,2491.6,2491.5,0.40166]
[1729703002781,3.0319247,2491.6,2491.2,40.8]
[1729703002782,0.40166,2491.5,2491.2,0.4017]
[1729703003081,3.03034318,2491.5,2491.1,3.2078]
[1729703003286,2.92677998,2491.2,2491.1,3.2078]
[1729703003484,3.03034318,2491.3,2491.1,3.60952]
[1729703003685,3.03034318,2491.3,2491.2,0.40171]
[1729703003891,3.03034318,2491.3,2491.2,4.0144]
[1729703003892,2.52436212,2491.3,2491.2,4.0144]
[1729703004081,2.52436212,2491.3,2491.2,4.41611]
[1729703004280,2.52436212,2491.4,2491.3,0.40169]
[1729703004588,3.03034318,2491.9,2491.4,1.00417]
[1729703004882,3.03034318,2492.4,2492.3,0.40153]
[1729703005085,54.7627421,2492.5,2492.4,0.40152]
[1729703005086,48.02269,2492.5,2492.4,0.40152]
[1729703005386,4.29255056,2492.4,2491.7,3.2078]
[1729703005585,4.69408056,2492.4,2492.1,41.20156]
[1729703005790,0.40153,2492.4,2492.1,40.8]
[1729703006091,48.02269,2492.5,2492.1,40.8]
[1729703006289,3.2078,2492.4,2491.7,3.2078]
[1729703006491,1.51331474,2491.8,2491.5,2.4405]
[1729703006783,1.00891969,2491.7,2491.6,0.40164]
[1729703006988,1.51331474,2491.7,2491.6,4.41524]
[1729703007192,0.40159,2492.0,2491.7,0.40163]
[1729703007380,3.03034318,2492.2,2491.7,0.40163]
[1729703007580,3.03034318,2492.2,2491.5,2.4405]
[1729703007581,7.21335128,2492.2,2491.5,2.4405]
[1729703007785,0.40159,2492.0,2491.8,0.40161]
[1729703008084,3.03034318,2492.2,2492.0,0.40158]
[1729703008085,4.63276373,2492.1,2492.0,0.40158]
[1729703008394,0.40158,2492.1,2491.5,2.4405]
[1729703008591,1.00851381,2491.6,2491.5,2.84216]
[1729703008788,1.00851381,2491.6,2491.5,6.85496]
[1729703009094,0.4016,2491.9,2491.7,0.40162]
[1729703009285,4.2162362,2492.1,2491.5,43.2405]
[1729703009592,0.40165,2491.6,2491.4,0.40167]
[1729703009896,4.2162362,2491.8,2491.2,2.3278]
[1729703010188,0.40171,2491.2,2491.1,3.2078]
[1729703010387,1.0084362,2491.3,2490.7,3.2078]
[1729703010594,1.0084362,2491.4,2490.7,3.2078]
[1729703010884,1.0084362,2491.4,2490.5,0.40182]
[1729703010885,0.40176,2490.9,2490.5,0.40182]
[1729703011086,0.40179,2490.7,2490.5,0.40182]
[1729703011293,4.61502461,2490.8,2490.5,0.40181]
[1729703011593,1.0084362,2490.9,2490.4,8.1499]
[1729703011793,0.40178,2490.8,2490.6,0.4018]
[1729703011992,5.04114842,2490.8,2490.6,0.4018]
[1729703013082,5.04114842,2490.8,2490.4,5.6149]
[1729703013284,4.63936842,2490.8,2490.5,0.40181]
[1729703013488,4.63936842,2490.8,2490.6,0.4018]
[1729703013489,5.04113842,2490.8,2490.6,0.4018]
[1729703013694,4.63936842,2490.8,2490.4,5.6149]
[1729703013896,1.0084362,2491.1,2490.7,3.2078]
[1729703014089,1.0084362,2491.3,2490.8,1.00444]
[1729703014284,1.0084362,2491.3,2490.7,3.2078]
[1729703014285,0.40169,2491.3,2491.1,0.40172]
[1729703014486,1.0084362,2491.4,2491.3,0.40169]
[1729703014788,4.2162362,2491.5,2490.9,1.00438]
[1729703014989,1.0084362,2491.6,2490.9,7.5478]
[1729703015290,1.0084362,2491.7,2491.0,4.21216]
[1729703015489,0.40165,2491.6,2491.4,0.40167]
[1729703015897,1.4100762,2491.7,2491.4,0.40167]
[1729703016391,0.40166,2491.6,2491.4,0.40167]
[1729703016597,4.2162362,2491.8,2491.4,4.0136]
[1729703016890,4.8016,2492.1,2490.7,2.5531]
[1729703016891,1.0084362,2492.0,2491.9,0.4016]
[1729703017099,50.47999,2492.5,2492.4,0.40152]
[1729703017288,48.02269,2492.5,2492.4,0.40152]
[1729703018096,48.02269,2492.5,2492.1,3.2078]
[1729703018394,48.02269,2492.5,2491.8,3.2078]
[1729703018594,48.02269,2492.5,2492.4,0.40152]
[1729703018800,4.24832938,2492.4,2491.4,3.2078]
[1729703019097,0.40163,2491.8,2491.5,0.40166]
[1729703019595,0.40164,2491.6,2491.5,40.8]
[1729703019892,0.40162,2491.8,2491.6,0.40163]
[1729703020100,3.2078,2491.9,2491.5,40.8]
[1729703020293,0.40161,2491.8,2491.6,0.40163]
[1729703020498,0.40164,2491.7,2491.5,41.20166]
[1729703020996,3.6094,2491.9,2491.7,0.40162]
[1729703021200,0.40162,2491.8,2491.6,0.40164]
[1729703021394,4.35771427,2491.8,2490.9,3.2078]
[1729703021593,0.40172,2491.2,2491.0,0.40174]
[1729703021894,3.2078,2491.6,2490.6,3.2078]
[1729703021895,0.4017,2491.3,2490.9,3.2078]
[1729703022094,3.2078,2491.6,2491.0,0.40173]
[1729703022401,0.40175,2491.0,2490.8,0.40176]
[1729703022593,3.2078,2491.3,2490.6,44.0078]
[1729703022900,0.40172,2491.2,2491.0,0.40173]
[1729703023096,3.2078,2491.3,2490.6,44.0078]
[1729703023299,0.40173,2491.1,2490.9,0.40175]
[1729703023496,0.40176,2490.9,2490.7,0.40178]
[1729703024002,4.55572266,2491.2,2490.7,4.0144]
[1729703024003,0.40177,2490.8,2490.7,4.0144]
[1729703024205,0.40177,2490.8,2490.6,44.40959]
[1729703024206,3.2078,2491.0,2490.6,40.8]
[1729703024503,0.40179,2490.7,2490.6,40.8]
[1729703025600,8.03329095,2490.9,2490.6,40.8]
[1729703025795,0.40178,2490.8,2490.6,41.20179]
[1729703026605,8.03329095,2490.9,2490.6,41.20179]
[1729703026606,0.40179,2490.7,2490.6,40.8]
[1729703026797,0.40178,2490.8,2490.6,41.20181]
[1729703027291,1.0084362,2490.8,2490.7,0.40178]
[1729703027594,3.5354362,2490.9,2490.7,0.40178]
[1729703027803,3.5354362,2490.9,2490.6,40.8]
[1729703027804,3.9372062,2490.9,2490.8,0.40177]
[1729703028300,2.92876,2490.9,2490.8,0.40177]
[1729703028603,4.72057072,2491.0,2490.8,4.0144]
[1729703028604,4.61663495,2491.0,2490.8,4.0144]
[1729703028903,1.40881495,2491.0,2490.9,0.40176]
[1729703029205,1.00707495,2491.0,2490.9,0.40176]
[1729703029405,1.91450072,2491.1,2490.9,0.40174]
[1729703029591,1.91450072,2491.1,2490.6,40.8]
[1729703029592,1.00749072,2491.0,2490.6,40.8]
[1729703029794,4.21529072,2491.0,2490.9,0.40174]
[1729703029994,4.61703072,2491.0,2490.9,0.40174]
[1729703030196,3.2078,2491.0,2490.9,0.40174]
[1729703030401,3.2078,2491.0,2490.9,4.41614]
[1729703030598,1.00749072,2491.2,2491.1,0.40173]
[1729703030792,0.40172,2491.2,2491.1,0.40172]
[1729703030996,4.21529072,2491.3,2490.6,41.8045]
[1729703031205,4.61699072,2491.3,2491.2,0.40171]
[1729703031502,4.61699072,2491.3,2490.6,41.8045]
[1729703031503,0.40171,2491.2,2491.0,0.40173]
[1729703031697,1.00812442,2491.2,2491.1,0.40173]
[1729703032098,3.6095,2491.3,2491.1,0.40173]
[1729703032402,0.40171,2491.2,2491.1,0.40173]
[1729703032804,0.4017,2491.3,2491.1,0.40173]
[1729703033003,4.50749065,2491.5,2490.7,1.00446]
[1729703033004,0.40171,2491.2,2490.7,1.00446]
[1729703033206,0.40171,2491.2,2491.0,0.40173]
[1729703033396,3.2078,2491.3,2490.7,5.01886]
[1729703033594,3.6095,2491.3,2491.2,0.40171]
[1729703033797,3.6095,2491.3,2490.8,1.00444]
[1729703033992,3.6095,2491.3,2491.2,0.40171]
[1729703033993,3.2078,2491.3,2491.2,0.40171]
[1729703034511,3.2078,2491.3,2490.8,3.86]
[1729703034702,3.2078,2491.3,2489.8,3.60972]
[1729703034703,0.40192,2489.9,2489.8,3.60972]
[1729703034910,0.40192,2489.9,2489.8,0.40193]
[1729703035211,0.40197,2489.6,2489.5,41.20198]
[1729703035499,4.6484105,2490.0,2489.5,40.8]
[1729703035902,0.402,2489.4,2489.3,3.2078]
[1729703036094,0.40204,2489.2,2489.0,0.40206]
[1729703036296,7.0678,2489.5,2488.9,0.40206]
[1729703036297,0.40205,2489.1,2488.9,0.40206]
[1729703036499,0.40205,2489.1,2489.0,40.8]
[1729703036805,0.40204,2489.2,2489.0,41.20206]
[1729703037001,0.40205,2489.1,2489.0,40.8]
[1729703037200,4.20551653,2489.1,2488.7,3.2078]
[1729703037396,0.40207,2489.0,2488.8,0.40209]
[1729703037704,0.40207,2489.0,2488.7,3.2078]
[1729703037705,0.40207,2489.0,2488.9,40.8]
[1729703038405,4.20551653,2489.1,2488.9,40.8]
[1729703038907,4.60757653,2489.1,2488.9,40.8]
[1729703039603,2.4448,2489.4,2489.0,0.40206]
[1729703039805,2.84681,2489.4,2489.1,0.40205]
[1729703040001,2.84681,2489.4,2488.9,40.8]
[1729703040002,4.3394878,2489.3,2488.9,40.8]
[1729703040197,4.7415178,2489.3,2489.0,0.40205]
[1729703040504,0.40204,2489.2,2489.0,0.40205]
[1729703040703,3.2078,2489.2,2488.9,40.8]
[1729703040904,0.40213,2488.6,2488.4,3.60996]
[1729703041202,5.32917277,2489.1,2488.4,3.2078]
[1729703041203,3.2078,2488.9,2488.4,3.2078]
[1729703041405,0.4021,2488.8,2488.6,0.40212]
[1729703041600,4.32402277,2488.8,2488.6,0.40212]
[1729703042003,0.40211,2488.8,2488.5,0.40213]
[1729703042202,3.2078,2488.9,2488.4,44.0078]
[1729703042203,3.60989,2488.9,2488.4,44.0078]